bitfinex/quotes_ETHUSD_20250403
["timestamp","ask_amount","ask_price","bid_price","bid_amount"]
[1743687520229,5.60853,1783.0,1782.6,0.05609007]
[1743687520531,6.17,1783.5,1782.6,6.81596901]
[1743687520743,5.60871,1783.0,1782.5,0.7863]
[1743687520953,6.37411,1783.0,1782.4,5.61011]
[1743687521157,6.37411,1783.0,1782.4,11.22037]
[1743687521355,0.7654,1783.0,1782.5,11.21987]
[1743687521652,6.37304,1783.3,1782.8,5.60893]
[1743687521824,0.7654,1783.3,1782.9,0.05608188]
[1743687522926,5.60731,1783.4,1782.9,0.05608205]
[1743687523326,5.60781,1783.3,1782.6,0.05608101]
[1743687523526,6.3997,1783.7,1782.9,3.0]
[1743687523776,6.39989,1783.7,1783.1,5.60804]
[1743687524074,6.39989,1783.7,1783.1,5.60803]
[1743687524296,0.7933,1783.7,1782.7,3.0]
[1743687524452,5.60739,1783.4,1782.8,5.60912]
[1743687524661,5.60768,1783.3,1782.7,5.60931]
[1743687524991,4.60063133,1783.7,1782.8,0.0560822]
[1743687524992,0.7933,1783.7,1782.8,0.0560822]
[1743687525140,5.60832,1783.1,1782.5,13.83267]
[1743687525340,0.764,1783.1,1782.5,6.43767]
[1743687525542,0.764,1783.1,1782.5,7.081437]
[1743687525845,0.764,1783.5,1782.9,5.60865]
[1743687526151,0.764,1783.5,1782.6,0.55]
[1743687526465,5.6077,1783.3,1782.7,5.60934]
[1743687526646,5.60729,1783.4,1782.8,5.66522156]
[1743687526847,5.60814,1783.2,1782.8,0.05608156]
[1743687527058,5.60814,1783.2,1782.6,5.60971]
[1743687527262,5.60814,1783.2,1782.6,11.21931]
[1743687527459,5.60853,1783.0,1782.5,0.8278]
[1743687527638,5.60853,1783.0,1782.4,5.61021]
[1743687527839,5.60822,1783.1,1782.5,5.60981]
[1743687528055,0.7511,1782.9,1782.4,5.61038]
[1743687528258,6.35916,1783.2,1782.5,5.66616256]
[1743687528479,5.60833,1783.1,1782.5,5.66596256]
[1743687528753,0.7511,1783.2,1782.8,5.60899]
[1743687528959,0.8155,1783.5,1782.9,0.05608273]
[1743687529178,0.8155,1783.5,1782.9,5.66490273]
[1743687529394,6.42274,1783.5,1782.9,5.60882]
[1743687529686,6.42274,1783.5,1782.7,0.7642]
[1743687529687,5.60778,1783.3,1782.7,6.37366]
[1743687529987,5.60778,1783.3,1782.7,11.98299]
[1743687530188,5.60872,1783.0,1782.4,6.42862]
[1743687530389,5.6095,1782.7,1782.1,0.7822]
[1743687530689,5.60963,1782.7,1782.1,5.61111]
[1743687530985,5.60997,1782.6,1782.1,5.6113]
[1743687531183,0.574581,1782.7,1782.2,5.66701146]
[1743687531184,5.60947,1782.7,1782.2,5.66701146]
[1743687531483,5.61084,1782.3,1781.8,0.7822]
[1743687531707,5.61084,1782.3,1781.5,5.61314]
[1743687531708,5.61176,1782.0,1781.4,6.40808]
[1743687531984,5.61176,1782.0,1781.4,6.40802]
[1743687532283,5.61157,1782.1,1781.5,5.66936311]
[1743687532486,5.61157,1782.1,1781.6,0.05612267]
[1743687532657,6.44097,1782.2,1781.9,5.61183]
[1743687532658,0.8299,1782.2,1781.9,5.61183]
[1743687533005,11.2206,1782.5,1782.0,0.05611485]
[1743687533158,0.7519,1782.6,1782.0,5.66766485]
[1743687533357,5.61039,1782.5,1781.9,5.61171]
[1743687533587,5.61075,1782.3,1781.8,5.61215]
[1743687533752,5.61029,1782.5,1781.9,0.05611099]
[1743687533951,0.7519,1782.6,1782.2,5.61087]
[1743687534202,3.0,1782.9,1782.2,5.61087]
[1743687534203,0.7964,1782.9,1782.4,5.61028]
[1743687534401,5.60925,1782.8,1782.3,5.6107]
[1743687534684,5.60809,1783.2,1782.7,5.60926]
[1743687535091,1.135359,1783.2,1782.3,5.6107]
[1743687535256,5.60947,1782.7,1782.3,5.61072]
[1743687535457,0.7908,1783.2,1782.7,5.60919]
[1743687535689,9.96392133,1783.7,1783.1,5.60798]
[1743687535690,6.35967,1783.5,1783.1,5.60798]
[1743687535909,6.17,1783.8,1783.2,5.60778]
[1743687535910,0.7525,1783.8,1783.2,5.60778]
[1743687536189,5.60633,1783.7,1783.0,0.05607589]
[1743687536393,5.60697,1783.5,1783.0,0.56648759]
[1743687536595,5.60697,1783.5,1783.1,11.2162]
[1743687536802,5.60697,1783.5,1783.1,5.60805]
[1743687537099,6.03483193,1784.1,1782.8,6.40742]
[1743687537100,0.02095189,1784.6,1784.5,5.60381]
[1743687537457,0.02095189,1784.6,1784.5,8.65983643]
[1743687537458,1.89e-06,1784.6,1784.5,8.65983643]
[1743687537791,1.89e-06,1784.9,1784.8,5.60286]
[1743687538509,1.89e-06,1784.9,1784.8,5.65887713]
[1743687539010,1.89e-06,1784.9,1784.8,5.60286]
[1743687539377,1.89e-06,1784.9,1784.5,5.60357]
[1743687539607,1.89e-06,1784.9,1784.4,5.60412]
[1743687539808,6.16284808,1784.9,1784.4,5.60412]
[1743687540022,5.60255189,1784.9,1784.4,5.60386]
[1743687540224,5.60309,1784.8,1784.2,5.60446]
[1743687540426,5.60331,1784.7,1784.1,5.60489]
[1743687540578,5.60306,1784.8,1784.1,5.60484]
[1743687540780,5.60335,1784.7,1784.1,0.05604046]
[1743687540978,5.60415,1784.4,1784.0,5.60509]
[1743687541221,5.60382,1784.5,1784.0,5.60509]
[1743687541430,5.60386,1784.5,1784.0,0.05604445]
[1743687541633,5.60442,1784.4,1783.7,5.60614]
[1743687541785,0.560442,1784.3,1783.8,5.606]
[1743687541988,0.8191,1784.4,1784.0,5.60533]
[1743687542512,0.8191,1784.4,1783.6,0.8178]
[1743687542693,5.60483,1784.2,1783.2,8.840505]
[1743687542893,5.6045,1784.3,1783.8,5.606]
[1743687543075,6.42327,1784.4,1783.9,5.66155899]
[1743687543282,0.8191,1784.4,1784.2,5.60473]
[1743687543488,0.8281,1784.7,1784.0,5.60522]
[1743687543720,0.8281,1784.7,1784.2,5.60471]
[1743687543933,0.8281,1784.7,1784.3,5.66024817]
[1743687544082,0.8281,1784.7,1784.3,5.6043]
[1743687544520,1.89e-06,1784.9,1784.4,5.60406]
[1743687544882,1.89e-06,1784.9,1784.5,5.60363]
[1743687545084,1.89e-06,1784.9,1784.1,5.60488]
[1743687545328,5.60333,1784.7,1784.1,5.60488]
[1743687545528,5.60318,1784.7,1783.9,11.71547]
[1743687545697,6.163498,1784.7,1783.9,5.60547]
[1743687546035,5.60397,1784.5,1784.0,5.60534]
[1743687546183,5.60397,1784.5,1783.7,5.60631]
[1743687546184,5.60489,1784.2,1783.7,5.60631]
[1743687546528,5.6051,1784.1,1783.6,5.60662]
[1743687546682,11.21045,1784.1,1783.6,5.66267823]
[1743687546884,6.17,1785.2,1783.6,5.66267823]
[1743687547083,0.7615,1788.4,1786.8,5.59659]
[1743687547313,0.7615,1788.4,1787.1,5.59543]
[1743687547314,6.3531,1788.4,1787.1,5.59543]
[1743687547531,0.7615,1788.4,1787.0,8.401]
[1743687547681,0.7615,1788.4,1787.6,5.59391]
[1743687547682,6.3531,1788.4,1787.6,5.59391]
[1743687547881,0.7615,1788.4,1787.2,0.7975]
[1743687548165,0.7615,1788.4,1787.0,8.401]
[1743687548166,0.7615,1788.4,1787.3,0.05593371]
[1743687548338,8.518,1788.6,1786.8,3.7975]
[1743687548339,0.8144,1787.8,1786.8,3.7975]
[1743687548637,0.8144,1787.8,1786.6,5.59697]
[1743687548638,8.442,1787.7,1786.6,5.59697]
[1743687548783,0.8144,1787.8,1786.5,5.887745]
[1743687548989,5.59405,1787.7,1786.7,3.0]
[1743687549339,5.59457,1787.5,1786.5,5.887765]
[1743687549487,0.8144,1787.8,1786.7,5.59687]
[1743687549686,5.59444,1787.5,1786.5,0.290475]
[1743687549888,0.8144,1787.8,1787.1,5.59552]
[1743687550118,0.8144,1787.8,1786.8,5.59659]
[1743687550324,5.59532,1787.3,1786.5,5.887795]
[1743687550683,5.59532,1787.3,1786.7,5.59684]
[1743687550832,5.59518,1787.3,1786.7,5.59684]
[1743687551150,3.8144,1787.8,1786.5,5.887785]
[1743687551151,12.0018,1787.8,1787.2,5.59518]
[1743687551433,6.40794,1787.8,1787.2,5.5952]
[1743687551635,6.40794,1787.8,1787.4,5.59452]
[1743687551636,0.8144,1787.8,1787.4,5.59452]
[1743687551817,0.8144,1787.8,1787.5,5.59414]
[1743687552023,0.8144,1787.8,1787.6,5.59391]
[1743687552192,0.8144,1787.8,1787.4,5.5945]
[1743687552589,0.8144,1787.8,1786.0,0.1]
[1743687552799,6.40817,1787.8,1787.2,5.59531]
[1743687553019,6.40817,1787.8,1787.2,5.59513]
[1743687553020,6.40803,1787.8,1787.2,5.59513]
[1743687553237,5.59396,1787.7,1787.2,5.59524]
[1743687553454,3.8144,1787.8,1786.9,5.59599]
[1743687553738,8.491,1787.6,1786.7,5.59689]
[1743687553942,5.59549,1787.2,1786.7,5.59689]
[1743687554088,5.59534,1787.2,1786.7,5.59689]
[1743687554425,5.59495,1787.4,1786.9,5.59627]
[1743687554619,5.5949,1787.4,1786.9,5.59627]
[1743687554818,14.08534,1787.6,1787.0,5.59579]
[1743687555023,14.08534,1787.6,1786.4,0.7519]
[1743687555024,8.491,1787.6,1786.5,5.59753]
[1743687555332,5.64829,1787.9,1786.9,5.59627]
[1743687555492,0.055,1787.9,1787.5,5.59434]
[1743687555693,0.055,1787.9,1786.6,10.92178235]
[1743687555694,0.055,1787.9,1786.8,5.5963]
[1743687555928,0.055,1787.9,1787.2,5.59507]
[1743687556227,5.59484,1787.4,1786.5,5.59753]
[1743687556427,5.59473,1787.4,1786.9,5.59601]
[1743687556732,0.8306,1787.5,1786.4,0.7519]
[1743687556733,11.19035,1787.3,1786.7,5.59679]
[1743687556938,6.42502,1787.5,1786.8,5.59629]
[1743687557092,0.8306,1787.5,1786.9,0.05596213]
[1743687557293,0.8306,1787.5,1787.2,5.59519]
[1743687557518,5.59348,1787.8,1787.3,5.59488]
[1743687557836,5.59392,1787.7,1787.2,5.59514]
[1743687558132,5.59347,1787.8,1787.3,5.59481]
[1743687558346,0.8775,1787.9,1787.5,5.59427]
[1743687558545,0.055,1787.9,1787.8,5.59346]
[1743687558845,1e-05,1787.9,1787.8,6.44458336]
[1743687559706,1e-05,1787.9,1787.8,6.44457585]
[1743687560110,1e-05,1787.9,1787.8,6.99457585]
[1743687561345,1e-05,1787.9,1787.8,8.25339651]
[1743687561719,1e-05,1787.9,1787.8,19.68821886]
[1743687561926,1e-05,1787.9,1787.8,19.63230594]
[1743687562911,1e-05,1787.9,1787.8,22.63230594]
[1743687563115,0.02418946,1788.7,1788.6,5.59096]
[1743687563531,0.02418946,1788.7,1788.5,11.18223]
[1743687563726,0.02418946,1788.7,1788.4,5.59157]
[1743687564062,0.02418946,1788.7,1788.5,0.05590335]
[1743687564364,5.59172,1788.4,1787.8,0.7952]
[1743687564657,5.59237,1788.2,1787.7,5.59357]
[1743687564858,5.59269,1788.1,1787.6,11.18804]
[1743687565028,5.59215,1788.3,1787.7,5.59374]
[1743687565223,0.8149,1788.5,1787.8,0.05592582]
[1743687565471,0.8149,1788.5,1788.1,5.59242]
[1743687565633,0.8149,1788.5,1788.1,5.59252]
[1743687566033,6.40621,1788.5,1787.6,5.59409]
[1743687566248,0.8149,1788.5,1788.2,5.5922]
[1743687566440,0.8149,1788.5,1787.8,0.55]
[1743687566653,0.8149,1788.5,1788.1,5.59236]
[1743687566843,6.40631,1788.5,1788.1,5.59236]
[1743687567031,5.59204,1788.3,1787.9,5.59312]
[1743687567235,5.59254,1788.1,1787.7,5.59377]
[1743687567554,5.59382,1787.7,1787.2,5.59523]
[1743687567754,0.8046,1787.7,1787.0,0.10312691]
[1743687567958,0.8046,1787.7,1787.3,5.59482]
[1743687568159,0.8164,1788.0,1787.6,5.59409]
[1743687568465,5.59342,1787.9,1787.4,5.59453]
[1743687568634,5.59315,1787.9,1787.3,5.59484]
[1743687568831,5.59342,1787.9,1787.5,5.59436]
[1743687569062,6.40932,1788.0,1787.5,5.59436]
[1743687569264,0.8164,1788.0,1787.0,0.55]
[1743687569444,11.18667,1787.9,1787.4,5.59458]
[1743687569640,5.5933,1787.9,1787.0,0.614628]
[1743687569853,5.5933,1787.9,1787.4,5.5946]
[1743687570058,5.59357,1787.8,1787.4,0.0559405]
[1743687570265,6.40929,1788.0,1787.1,5.59545]
[1743687570266,5.59327,1787.9,1787.1,5.59545]
[1743687570565,0.8164,1788.0,1787.6,5.59406]
[1743687570763,0.8164,1788.0,1787.0,4.35123788]
[1743687570764,0.8164,1788.0,1787.3,5.59483]
[1743687570969,5.59325,1787.9,1787.2,0.0559383]
[1743687571145,5.59346,1787.8,1787.4,5.59468]
[1743687571342,5.59346,1787.8,1787.4,5.65062049]
[1743687571562,5.59346,1787.8,1787.2,5.5953]
[1743687571770,5.59456,1787.5,1787.0,5.59595]
[1743687571938,6.38897,1787.4,1786.9,5.77105247]
[1743687572269,0.7941,1787.4,1787.0,5.59586]
[1743687572432,0.7941,1787.4,1786.9,5.77101247]
[1743687572635,6.38907,1787.4,1786.9,5.77101247]
[1743687572863,6.38907,1787.4,1786.9,5.77098247]
[1743687573063,0.7941,1787.4,1787.0,5.59593]
[1743687573265,5.59393,1787.7,1787.1,5.65144306]
[1743687573473,5.59442,1787.5,1787.1,0.05595306]
[1743687573631,5.59442,1787.5,1787.0,5.59586]
[1743687573832,0.8024,1787.2,1786.6,0.45446043]
[1743687574135,6.39789,1787.2,1786.7,11.24942695]
[1743687574340,6.972811,1787.2,1786.6,11.64868043]
[1743687574571,11.99337,1787.2,1786.7,5.65282952]
[1743687574772,6.39777,1787.2,1786.7,5.65282952]
[1743687575081,11.99335,1787.2,1786.7,5.65282952]
[1743687575284,6.39781,1787.2,1786.7,5.65282929]
[1743687575582,5.59586,1787.1,1786.7,0.23075176]
[1743687575938,11.19172,1787.1,1786.7,0.23075176]
[1743687576138,5.59586,1787.1,1786.7,0.23075176]
[1743687576383,6.39777,1787.2,1786.7,5.82749176]
[1743687576544,11.99331,1787.2,1786.7,5.82749176]
[1743687576740,6.39777,1787.2,1786.8,0.17479247]
[1743687576943,0.8024,1787.2,1786.9,0.05596326]
[1743687577141,0.7627,1787.6,1787.1,5.59543]
[1743687577437,6.35681,1787.6,1787.0,11.24769449]
[1743687577782,0.7627,1787.6,1786.9,0.17485122]
[1743687577969,0.7963,1787.9,1787.5,5.5944]
[1743687578163,0.7963,1787.9,1787.7,5.59367]
[1743687578365,5.59202,1788.3,1787.8,5.59318]
[1743687578567,6.38759,1788.5,1787.9,0.05592317]
[1743687578772,6.38769,1788.5,1788.0,5.59273]
[1743687578938,5.59162,1788.4,1787.9,5.59298]
[1743687579139,5.59265,1788.1,1787.8,0.17485122]
[1743687579460,5.59284,1788.0,1787.9,0.10312691]
[1743687579781,6.34894,1788.0,1787.9,0.10312691]
[1743687580558,5.59377,1787.7,1787.6,0.17485122]
[1743687581292,5.59276,1788.1,1787.6,5.76874122]
[1743687581446,5.59276,1788.1,1787.7,5.59372]
[1743687581649,11.18558,1788.1,1787.6,5.59389]
[1743687581866,6.3418,1788.4,1787.5,5.59436]
[1743687581867,5.59297,1788.0,1787.5,5.59436]
[1743687582085,5.59252,1788.1,1787.4,0.17485122]
[1743687582390,5.59221,1788.2,1787.5,0.17485122]
[1743687582391,5.59392,1787.7,1787.5,0.17485122]
[1743687582591,6.39855,1788.0,1787.5,5.76905122]
[1743687582895,5.5932,1787.9,1787.5,0.34965179]
[1743687583061,5.59372,1787.8,1787.5,0.34965179]
[1743687583243,5.59316,1787.9,1787.5,5.94396179]
[1743687583445,5.59316,1787.9,1787.5,0.34965179]
[1743687583645,5.59316,1787.9,1787.5,5.76909057]
[1743687583841,5.59321,1787.9,1787.6,0.23074088]
[1743687584149,0.8243,1788.3,1787.6,5.82468613]
[1743687584511,5.59252,1788.1,1787.6,5.76886057]
[1743687584654,0.8243,1788.3,1787.6,0.17480057]
[1743687584655,5.59336,1787.9,1787.6,0.17480057]
[1743687584847,5.59289,1788.0,1787.6,0.17480057]
[1743687585287,5.59257,1788.1,1787.6,0.17480057]
[1743687585288,5.59265,1788.1,1787.6,5.76885057]
[1743687585488,5.59372,1787.8,1787.7,0.17480057]
[1743687585833,6.39252,1787.8,1787.7,0.17480057]
[1743687586752,5.59391,1787.7,1787.3,0.1747853]
[1743687586948,5.59419,1787.6,1787.3,0.1747853]
[1743687587151,5.59443,1787.5,1787.3,0.1747853]
[1743687587391,5.59471,1787.4,1787.3,0.1747853]
[1743687587794,5.59394,1787.7,1787.2,6.04981696]
[1743687587795,5.59421,1787.6,1787.2,6.04981696]
[1743687588082,5.59383,1787.7,1787.2,6.04981696]
[1743687588486,5.59419,1787.6,1787.2,11.19038]
[1743687588687,5.59419,1787.6,1787.2,11.19041]
[1743687588888,6.3924,1787.8,1787.3,5.7695953]
[1743687589084,11.18797,1787.7,1787.3,0.1747853]
[1743687589432,0.7988,1787.8,1787.3,0.1747853]
[1743687589596,6.35541,1787.4,1787.3,0.1747853]
[1743687589786,6.35541,1787.4,1787.3,0.45447169]
[1743687590517,6.35541,1787.4,1787.3,0.27968639]
[1743687590684,0.7607,1787.4,1787.3,0.27968639]
[1743687591018,0.7926,1787.7,1787.3,0.27968639]
[1743687591219,3.80123788,1788.2,1787.1,0.05594589]
[1743687591220,8.108,1788.0,1787.1,0.05594589]
[1743687591384,5.59454,1787.5,1787.1,0.05594589]
[1743687591581,5.59372,1787.8,1786.8,6.05097754]
[1743687591835,5.59471,1787.4,1786.9,5.65201649]
[1743687592144,0.8327,1787.5,1787.2,5.77011855]
[1743687592319,6.36298,1789.8,1788.7,0.7507]
[1743687592520,0.7756,1789.8,1789.5,5.58787]
[1743687592680,0.05,1789.9,1789.6,0.05587567]
[1743687592882,0.05,1789.9,1789.4,5.58832]
[1743687593083,5.63708,1789.9,1789.3,6.33931]
[1743687593334,5.58836,1789.5,1789.1,0.17461759]
[1743687593543,5.58794,1789.6,1789.1,5.76399759]
[1743687593758,0.05,1789.9,1789.3,5.58877]
[1743687593920,5.58754,1789.7,1789.2,5.58908]
[1743687594119,0.05,1789.9,1789.4,5.58826]
[1743687594306,0.05,1789.9,1789.5,5.58796]
[1743687594507,0.05,1789.9,1789.4,0.17484115]
[1743687594706,0.05,1789.9,1789.6,5.58754]
[1743687594909,0.55,1790.3,1789.8,10.16894788]
[1743687595136,0.16814617,1790.4,1790.3,5.58565]
[1743687595306,6.17e-06,1790.4,1790.3,6.98108192]
[1743687595731,6.17e-06,1790.4,1790.3,9.98108192]
[1743687595974,6.17e-06,1790.4,1790.3,6.43108192]
[1743687596273,0.02580824,1790.7,1790.3,6.43108192]
[1743687596274,4.41e-06,1790.7,1790.6,5.58472]
[1743687596635,4.41e-06,1790.7,1790.5,5.58494]
[1743687596952,4.41e-06,1790.7,1790.6,5.6405616]
[1743687597133,4.41e-06,1790.7,1790.6,5.58472]
[1743687597336,4.41e-06,1790.7,1790.3,5.58542]
[1743687597537,4.41e-06,1790.7,1790.2,0.45452754]
[1743687597723,0.11230201,1790.6,1790.2,0.05584986]
[1743687597925,5.58549,1790.4,1789.9,5.58688]
[1743687598158,5.58474,1790.6,1790.0,5.64234767]
[1743687598358,0.13092219,1790.3,1789.8,5.58691]
[1743687598669,5.58519,1790.5,1790.0,5.58658]
[1743687598853,5.58547,1790.4,1790.1,0.0558561]
[1743687599174,5.71682219,1790.3,1789.9,0.05585618]
[1743687599381,5.71682219,1790.3,1789.6,5.58752]
[1743687599382,5.58644,1790.1,1789.7,0.05585923]
[1743687599701,5.58727,1789.8,1789.3,5.58863]
[1743687599968,5.58727,1789.8,1789.3,5.5887]
[1743687600127,5.58703,1789.9,1789.4,5.58846]
[1743687600323,5.58688,1790.0,1788.7,0.83]
[1743687600324,5.58724,1789.8,1788.7,0.83]
[1743687600522,3.7526,1789.7,1788.7,5.59042]
[1743687600827,5.58985,1789.0,1788.3,6.42167]
[1743687601026,5.59038,1788.8,1788.3,6.42189]
[1743687601332,0.11890284,1788.7,1788.1,0.05]
[1743687601533,5.59171,1788.4,1788.1,0.05]
[1743687601962,0.10611113,1788.3,1788.1,0.05]
[1743687602276,5.59221,1788.2,1788.1,0.05]
[1743687602430,6.47412113,1788.2,1788.1,0.05]
[1743687602627,5.59307,1788.0,1787.1,0.05]
[1743687602829,4.57703788,1788.2,1787.1,0.05]
[1743687602830,5.59534,1787.2,1787.1,0.05]
[1743687604641,6.41264,1787.2,1787.1,0.05]
[1743687605375,5.59534,1787.2,1787.1,0.05]
[1743687606527,5.59766,1786.5,1786.1,0.8482]
[1743687606733,5.59723,1786.6,1786.2,0.05597771]
[1743687606734,11.19466,1786.6,1786.2,0.05597771]
[1743687606927,11.19468,1786.6,1786.2,0.05597771]
[1743687607157,5.59719,1786.7,1786.2,0.05597771]
[1743687607422,5.59847,1786.2,1786.1,0.05]
[1743687607567,5.59847,1786.3,1786.1,0.05]
[1743687607768,14.15909,1786.7,1786.1,0.05]
[1743687607769,5.59847,1786.2,1786.1,0.05]
[1743687607971,11.572107,1787.2,1786.1,0.05]
[1743687607972,6.38467,1786.9,1786.1,5.64878]
[1743687608281,8.576,1786.8,1786.3,5.59794]
[1743687608629,8.5954,1787.2,1786.3,5.59794]
[1743687608630,5.5971,1786.7,1786.3,0.559794]
[1743687608767,5.5971,1786.7,1786.2,0.05597366]
[1743687608967,5.59726,1786.6,1786.1,5.64878]
[1743687609278,5.59773,1786.5,1786.1,0.05]
[1743687609463,5.59786,1786.4,1786.1,0.05]
[1743687609664,5.59819,1786.3,1786.1,0.05]
[1743687609865,5.59788,1786.4,1786.1,0.05]
[1743687610062,5.59835,1786.3,1786.1,0.05]
[1743687610522,5.59847,1786.2,1786.1,0.05]
[1743687610713,5.59835,1786.3,1786.1,0.05]
[1743687610864,5.59799,1786.4,1786.1,0.05]
[1743687611065,5.59847,1786.2,1786.1,0.05]
[1743687611509,5.59819,1786.3,1786.1,0.05]
[1743687611877,5.59799,1786.4,1786.1,0.05]
[1743687612095,5.59777,1786.5,1786.1,0.05]
[1743687612284,11.19554,1786.5,1786.1,0.05]
[1743687612610,5.5971,1786.7,1786.2,0.05598242]
[1743687612768,5.59695,1786.7,1786.2,6.22477666]
[1743687612971,5.59695,1786.7,1786.2,0.62645666]
[1743687613313,5.59693,1786.7,1786.2,5.59831]
[1743687613465,5.59801,1786.4,1786.1,0.05]
[1743687613673,5.59838,1786.3,1786.1,0.05]
[1743687613921,5.59847,1786.2,1786.1,0.05]
[1743687615923,6.42058,1786.3,1786.1,0.05]
[1743687616139,5.59847,1786.2,1786.1,0.05]
[1743687616289,14.06009,1786.4,1786.1,0.05]
[1743687616489,5.59802,1786.4,1786.1,0.05]
[1743687616710,6.3787,1786.6,1786.1,0.05]
[1743687617031,5.59847,1786.2,1786.1,0.05]
[1743687618785,0.4184023,1786.9,1786.1,0.05]
[1743687618786,0.7512,1787.1,1786.1,0.05]
[1743687619010,0.7512,1787.1,1786.3,5.59799]
[1743687619011,5.59681,1786.8,1786.3,5.59799]
[1743687619336,5.59748,1786.6,1786.1,0.8697]
[1743687619620,5.59748,1786.6,1786.1,6.46837]
[1743687619825,6.34686,1787.1,1786.6,5.59699]
[1743687620037,5.59566,1787.1,1786.6,5.59699]
[1743687620214,5.59508,1787.3,1786.8,6.39868]
[1743687620391,9.1995,1787.5,1786.8,6.39868]
[1743687620587,45.88412,1787.6,1786.9,0.05595914]
[1743687620787,0.8005,1787.8,1786.9,5.65215914]
[1743687621032,5.59504,1787.3,1786.8,6.39876]
[1743687621391,5.59442,1787.5,1786.8,0.05595855]
[1743687621594,5.59722,1786.6,1786.5,0.7889]
[1743687621892,11.19559,1786.5,1786.2,0.646837]
[1743687622091,5.59819,1786.3,1786.1,0.8389]
[1743687622315,5.59787,1786.4,1786.1,0.8389]
[1743687622513,5.59687,1786.8,1786.1,0.8389]
[1743687622717,47.2826,1787.3,1786.3,5.59816]
[1743687622914,5.59678,1786.8,1786.3,5.59813]
[1743687623118,5.59712,1786.7,1786.1,6.43768]
[1743687623321,5.59629,1786.9,1786.1,1.482668]
[1743687623502,5.59663,1786.8,1786.2,0.05597864]
[1743687623703,5.59662,1786.8,1786.2,5.65427864]
[1743687623928,5.59621,1787.0,1786.5,5.59738]
[1743687624128,5.5964,1786.9,1786.4,5.65373735]
[1743687624308,5.59728,1786.6,1786.2,5.59827]
[1743687624625,5.59598,1787.0,1786.5,5.59746]
[1743687624825,5.5963,1786.9,1786.5,5.59746]
[1743687624999,5.59578,1787.1,1786.5,5.65342735]
[1743687625200,5.59578,1787.1,1786.4,5.59781]
[1743687625429,5.59684,1786.8,1786.4,5.59773]
[1743687625632,5.59534,1787.2,1786.4,5.5976]
[1743687625819,5.59534,1787.2,1786.2,6.802013]
[1743687625820,5.59721,1786.7,1786.2,6.802013]
[1743687626019,5.59714,1786.7,1786.2,5.65426527]
[1743687626213,5.59679,1786.8,1786.3,5.5979]
[1743687626411,5.59597,1787.0,1786.4,0.05597237]
[1743687626613,5.59768,1786.5,1786.1,6.43767]
[1743687626814,5.59742,1786.6,1786.2,5.65442863]
[1743687627026,5.59756,1786.5,1786.2,0.05597863]
[1743687627222,5.59742,1786.6,1786.1,6.43757]
[1743687627422,5.59566,1787.1,1786.1,0.8389]
[1743687627598,5.59757,1786.5,1786.1,0.8389]
[1743687627808,5.59767,1786.5,1786.1,0.8389]
[1743687628330,5.59692,1786.7,1786.1,6.43766]
[1743687628536,5.59723,1786.6,1786.2,5.65433769]
[1743687628834,5.59788,1786.4,1786.1,0.05]
[1743687629129,5.59754,1786.5,1786.1,0.05]
[1743687629515,5.59754,1786.5,1786.1,11.24732]
[1743687629719,5.59691,1786.7,1786.3,5.59812]
[1743687629905,50.51346938,1787.3,1786.7,5.59671]
[1743687629906,5.59552,1787.2,1786.7,5.59671]
[1743687630110,5.59591,1787.1,1786.6,5.59701]
[1743687630334,41.1126,1787.3,1786.7,0.05596606]
[1743687630532,5.59579,1787.1,1786.7,5.59688]
[1743687630699,5.59555,1787.2,1786.7,6.156568]
[1743687630899,5.59534,1787.2,1786.4,0.7549]
[1743687631434,5.59734,1786.6,1786.2,6.11]
[1743687631732,5.5972,1786.7,1786.1,5.64878]
[1743687631936,8.59628,1786.9,1786.1,5.64868]
[1743687632134,5.59765,1786.5,1786.1,11.30326082]
[1743687632298,5.59663,1786.8,1786.4,5.59783]
[1743687632503,5.59663,1786.8,1786.4,5.5978]
[1743687632697,41.1126,1787.3,1786.1,0.05]
[1743687632698,5.59742,1786.6,1786.1,0.05]
[1743687633021,5.59775,1786.5,1786.2,0.17489641]
[1743687633236,5.59729,1786.6,1786.2,5.77336641]
[1743687633404,5.59765,1786.5,1786.2,0.34979315]
[1743687633799,5.59816,1786.3,1786.2,0.34979315]
[1743687634121,5.59813,1786.4,1786.2,0.34979315]
[1743687634502,5.59816,1786.3,1786.2,0.34979315]
[1743687635038,5.59812,1786.4,1786.2,0.17489674]
[1743687635236,11.19616,1786.4,1786.1,0.05]
[1743687635440,0.7751,1786.7,1786.1,0.05]
[1743687635441,5.59818,1786.3,1786.1,0.05]
[1743687635604,5.59847,1786.2,1786.1,0.05]
[1743687636235,5.59879,1786.1,1786.0,0.34979315]
[1743687636531,5.59879,1786.1,1786.0,0.17489641]
[1743687636735,5.59973,1785.8,1785.7,4.26e-06]
[1743687636937,5.60067,1785.5,1785.4,4.26e-06]
[1743687637141,11.201,1785.6,1785.4,4.26e-06]
[1743687637327,5.60039,1785.6,1785.4,4.26e-06]
[1743687637634,5.60037,1785.6,1785.4,4.26e-06]
[1743687638136,5.60067,1785.5,1785.4,4.26e-06]
[1743687638511,5.60161,1785.2,1785.1,0.05]
[1743687639438,6.01482758,1785.2,1785.1,0.05]
[1743687639645,6.39186,1784.8,1784.7,0.17501991]
[1743687639804,17.56386,1784.8,1784.7,0.17501991]
[1743687640326,5.60417,1784.4,1784.1,0.05]
[1743687640545,6.01588002,1784.7,1784.1,0.05]
[1743687640701,5.60394,1784.5,1784.1,0.05]
[1743687640906,11.961,1784.8,1784.1,0.05]
[1743687640907,5.60442,1784.4,1784.1,0.05]